Workbook

Sheet Tabell
E2: Sett inn sikteavstand, hullkornstørrelse og prosent (målestokk) | T2: Velg målestokk: | U2: 1:100
E3: Sikteavstand: | K3: Avstand mellom sikteøyet og hullkornet, målt i meter. | U3: 1:50
K4: Eksempel: 96 cm = skriv inn "0,96" (i meter). | U4: 1:33
E5: Hullkornstørrelse: | K5: Skriv inn ønsket hullkornstørrelse angitt i millimeter. | U5: 1:25
T6: UTE | U6: 1:1 | V6: 0.02
D8: =IF(V6=100%,"","INNENDØRS") -> INNENDØRS | L8: 0.98 | M8: m | N8: Grovfeltfigurer | U8: Målestokk: | V8: =V6 -> 0.02 | W8: =IF(V8=1%,U2,IF(V8=2%,U3,IF(V8=3%,U4,IF(V8=4%,U5,IF(V8=100%,U6,""))))) -> 1:50
L9: 2.8 | M9: mm | N9: Måles den vei figuren er størst: (bredde eller høyde)
B10: MAX | C10: NORM. | D10: Norm m | E10: Max m | F10: B | G10: H | H10: Br.x Hø. mm | K10: Mål mm | L10: Figur | M10: 1 | N10: 1.25 | O10: 1.5 | P10: 1.75 | Q10: 2 | R10: 2.25 | S10: 2.5 | T10: 2.75 | U10: 3 | V10: 3.25 | W10: 3.5 | X10: 3.75 | Y10: 4
B11: 195 | C11: 170 | D11: =C11*$V$6 -> 3.4 | E11: =B11*$V$6 -> 3.9 | F11: 200 | G11: 180 | H11: =F11*$V$6 -> 4 | I11: x | J11: =G11*$V$6 -> 3.6 | K11: =H11 -> 4 | L11: C-20 | M11: =SUM($M$10*$H11*10*$L$8/$L$9)/10 -> 1.4 | N11: =SUM($N$10*$H11*10*$L$8/$L$9)/10 -> 1.75 | O11: =SUM($O$10*$H11*10*$L$8/$L$9)/10 -> 2.1 | P11: =SUM($P$10*$H11*10*$L$8/$L$9)/10 -> 2.45 | Q11: =SUM($Q$10*$H11*10*$L$8/$L$9)/10 -> 2.8 | R11: =SUM($R$10*$H11*10*$L$8/$L$9)/10 -> 3.15 | S11: =SUM($S$10*$H11*10*$L$8/$L$9)/10 -> 3.5 | T11: =SUM($T$10*$H11*10*$L$8/$L$9)/10 -> 3.85 | U11: =SUM($U$10*$H11*10*$L$8/$L$9)/10 -> 4.2 | V11: =SUM($V$10*$H11*10*$L$8/$L$9)/10 -> 4.55 | W11: =SUM($W$10*$H11*10*$L$8/$L$9)/10 -> 4.9 | X11: =SUM($X$10*$H11*10*$L$8/$L$9)/10 -> 5.25 | Y11: =SUM($Y$10*$H11*10*$L$8/$L$9)/10 -> 5.6
B12: 245 | C12: 210 | D12: 4.2 | E12: 4.9 | F12: 250 | G12: 225 | H12: 5 | I12: x | J12: 4.5 | K12: =H12 -> 5 | L12: C-25 | M12: =SUM($M$10*$H12*10*$L$8/$L$9)/10 -> 1.75 | N12: 2.1875 | O12: 2.625 | P12: 3.0625 | Q12: 3.5 | R12: 3.9375 | S12: 4.375 | T12: 4.8125 | U12: 5.25 | V12: 5.6875 | W12: 6.125 | X12: 6.5625 | Y12: 7
B13: 295 | C13: 250 | D13: 5 | E13: 5.9 | F13: 300 | G13: 270 | H13: 6 | I13: x | J13: 5.4 | K13: 6 | L13: C-30 | M13: 2.1 | N13: 2.625 | O13: 3.15 | P13: 3.675 | Q13: 4.2 | R13: 4.725 | S13: 5.25 | T13: 5.775 | U13: 6.3 | V13: 6.825 | W13: 7.35 | X13: 7.875 | Y13: 8.4
B14: 340 | C14: 290 | D14: 5.8 | E14: 6.8 | F14: 350 | G14: 315 | H14: 7 | I14: x | J14: 6.3 | K14: 7 | L14: C-35 | M14: 2.45 | N14: 3.0625 | O14: 3.675 | P14: 4.2875 | Q14: 4.9 | R14: 5.5125 | S14: 6.125 | T14: 6.7375 | U14: 7.35 | V14: 7.9625 | W14: 8.575 | X14: 9.1875 | Y14: 9.8
B15: 390 | C15: 325 | D15: 6.5 | E15: 7.8 | F15: 400 | G15: 360 | H15: 8 | I15: x | J15: 7.2 | K15: 8 | L15: C-40 | M15: 2.8 | N15: 3.5 | O15: 4.2 | P15: 4.9 | Q15: 5.6 | R15: 6.3 | S15: 7 | T15: 7.7 | U15: 8.4 | V15: 9.1 | W15: 9.8 | X15: 10.5 | Y15: 11.2
B16: 480 | C16: 390 | D16: 7.8 | E16: 9.6 | F16: 500 | G16: 450 | H16: 10 | I16: x | J16: 9 | K16: =H16 -> 10 | L16: C-50 | M16: 3.5 | N16: 4.375 | O16: 5.25 | P16: 6.125 | Q16: 7 | R16: 7.875 | S16: 8.75 | T16: 9.625 | U16: 10.5 | V16: 11.375 | W16: 12.25 | X16: 13.125 | Y16: 14
B17: 325 | C17: 275 | D17: 5.5 | E17: =B17*$V$6 -> 6.5 | F17: 300 | H17: =F17*$V$6 -> 6 | K17: =H17 -> 6 | L17: Sirkel | M17: 2.1 | N17: 2.625 | O17: 3.15 | P17: 3.675 | Q17: 4.2 | R17: 4.725 | S17: 5.25 | T17: 5.775 | U17: 6.3 | V17: 6.825 | W17: 7.35 | X17: 7.875 | Y17: 8.4
B18: 180 | C18: 145 | D18: 2.9 | E18: 3.6 | F18: 300 | G18: 100 | H18: 6 | I18: x | J18: 2 | K18: =H18 -> 6 | L18: H.stripe | M18: 2.1 | N18: 2.625 | O18: 3.15 | P18: 3.675 | Q18: 4.2 | R18: 4.725 | S18: 5.25 | T18: 5.775 | U18: 6.3 | V18: 6.825 | W18: 7.35 | X18: 7.875 | Y18: 8.4
B19: 220 | C19: 185 | D19: 3.7 | E19: 4.4 | F19: 130 | G19: 400 | H19: 2.6 | I19: x | J19: 8 | K19: =J19 -> 8 | L19: V.stripe | M19: =SUM($M$10*$J19*10*$L$8/$L$9)/10 -> 2.8 | N19: =SUM($N$10*$J19*10*$L$8/$L$9)/10 -> 3.5 | O19: =SUM($O$10*$J19*10*$L$8/$L$9)/10 -> 4.2 | P19: =SUM($P$10*$J19*10*$L$8/$L$9)/10 -> 4.9 | Q19: =SUM($Q$10*$J19*10*$L$8/$L$9)/10 -> 5.6 | R19: =SUM($R$10*$J19*10*$L$8/$L$9)/10 -> 6.3 | S19: =SUM($S$10*$J19*10*$L$8/$L$9)/10 -> 7 | T19: =SUM($T$10*$J19*10*$L$8/$L$9)/10 -> 7.7 | U19: =SUM($U$10*$J19*10*$L$8/$L$9)/10 -> 8.4 | V19: =SUM($V$10*$J19*10*$L$8/$L$9)/10 -> 9.1 | W19: =SUM($W$10*$J19*10*$L$8/$L$9)/10 -> 9.8 | X19: =SUM($X$10*$J19*10*$L$8/$L$9)/10 -> 10.5 | Y19: =SUM($Y$10*$J19*10*$L$8/$L$9)/10 -> 11.2
B20: 280 | C20: 215 | D20: 4.3 | E20: 5.6 | F20: 370 | G20: 210 | H20: 7.4 | I20: x | J20: 4.2 | K20: 7.4 | L20: 1/8 | M20: =SUM($M$10*$H20*10*$L$8/$L$9)/10 -> 2.59 | N20: =SUM($N$10*$H20*10*$L$8/$L$9)/10 -> 3.2375 | O20: =SUM($O$10*$H20*10*$L$8/$L$9)/10 -> 3.885 | P20: =SUM($P$10*$H20*10*$L$8/$L$9)/10 -> 4.5325 | Q20: =SUM($Q$10*$H20*10*$L$8/$L$9)/10 -> 5.18 | R20: =SUM($R$10*$H20*10*$L$8/$L$9)/10 -> 5.8275 | S20: =SUM($S$10*$H20*10*$L$8/$L$9)/10 -> 6.475 | T20: =SUM($T$10*$H20*10*$L$8/$L$9)/10 -> 7.1225 | U20: =SUM($U$10*$H20*10*$L$8/$L$9)/10 -> 7.77 | V20: =SUM($V$10*$H20*10*$L$8/$L$9)/10 -> 8.4175 | W20: =SUM($W$10*$H20*10*$L$8/$L$9)/10 -> 9.065 | X20: =SUM($X$10*$H20*10*$L$8/$L$9)/10 -> 9.7125 | Y20: =SUM($Y$10*$H20*10*$L$8/$L$9)/10 -> 10.36
B21: 300 | C21: 245 | D21: 4.9 | E21: 6 | F21: 450 | G21: 260 | H21: 9 | I21: x | J21: 5.2 | K21: 9 | L21: 1/6 | M21: =SUM($M$10*$H21*10*$L$8/$L$9)/10 -> 3.15 | N21: =SUM($N$10*$H21*10*$L$8/$L$9)/10 -> 3.9375 | O21: =SUM($O$10*$H21*10*$L$8/$L$9)/10 -> 4.725 | P21: =SUM($P$10*$H21*10*$L$8/$L$9)/10 -> 5.5125 | Q21: =SUM($Q$10*$H21*10*$L$8/$L$9)/10 -> 6.3 | R21: =SUM($R$10*$H21*10*$L$8/$L$9)/10 -> 7.0875 | S21: =SUM($S$10*$H21*10*$L$8/$L$9)/10 -> 7.875 | T21: =SUM($T$10*$H21*10*$L$8/$L$9)/10 -> 8.6625 | U21: =SUM($U$10*$H21*10*$L$8/$L$9)/10 -> 9.45 | V21: =SUM($V$10*$H21*10*$L$8/$L$9)/10 -> 10.2375 | W21: =SUM($W$10*$H21*10*$L$8/$L$9)/10 -> 11.025 | X21: =SUM($X$10*$H21*10*$L$8/$L$9)/10 -> 11.8125 | Y21: =SUM($Y$10*$H21*10*$L$8/$L$9)/10 -> 12.6
B22: 350 | C22: 280 | D22: 5.6 | E22: 7 | F22: 490 | G22: 330 | H22: 9.8 | I22: x | J22: 6.6 | K22: 9.8 | L22: 1/4 | M22: =SUM($M$10*$H22*10*$L$8/$L$9)/10 -> 3.43 | N22: =SUM($N$10*$H22*10*$L$8/$L$9)/10 -> 4.2875 | O22: =SUM($O$10*$H22*10*$L$8/$L$9)/10 -> 5.145 | P22: =SUM($P$10*$H22*10*$L$8/$L$9)/10 -> 6.0025 | Q22: =SUM($Q$10*$H22*10*$L$8/$L$9)/10 -> 6.86 | R22: =SUM($R$10*$H22*10*$L$8/$L$9)/10 -> 7.7175 | S22: =SUM($S$10*$H22*10*$L$8/$L$9)/10 -> 8.575 | T22: =SUM($T$10*$H22*10*$L$8/$L$9)/10 -> 9.4325 | U22: =SUM($U$10*$H22*10*$L$8/$L$9)/10 -> 10.29 | V22: =SUM($V$10*$H22*10*$L$8/$L$9)/10 -> 11.1475 | W22: =SUM($W$10*$H22*10*$L$8/$L$9)/10 -> 12.005 | X22: =SUM($X$10*$H22*10*$L$8/$L$9)/10 -> 12.8625 | Y22: =SUM($Y$10*$H22*10*$L$8/$L$9)/10 -> 13.72
B23: 440 | C23: 365 | D23: 7.3 | E23: 8.8 | F23: 500 | G23: 480 | H23: 10 | I23: x | J23: 9.6 | K23: 10 | L23: 1/3 | M23: =SUM($M$10*$H23*10*$L$8/$L$9)/10 -> 3.5 | N23: =SUM($N$10*$H23*10*$L$8/$L$9)/10 -> 4.375 | O23: =SUM($O$10*$H23*10*$L$8/$L$9)/10 -> 5.25 | P23: =SUM($P$10*$H23*10*$L$8/$L$9)/10 -> 6.125 | Q23: =SUM($Q$10*$H23*10*$L$8/$L$9)/10 -> 7 | R23: =SUM($R$10*$H23*10*$L$8/$L$9)/10 -> 7.875 | S23: =SUM($S$10*$H23*10*$L$8/$L$9)/10 -> 8.75 | T23: =SUM($T$10*$H23*10*$L$8/$L$9)/10 -> 9.625 | U23: =SUM($U$10*$H23*10*$L$8/$L$9)/10 -> 10.5 | V23: =SUM($V$10*$H23*10*$L$8/$L$9)/10 -> 11.375 | W23: =SUM($W$10*$H23*10*$L$8/$L$9)/10 -> 12.25 | X23: =SUM($X$10*$H23*10*$L$8/$L$9)/10 -> 13.125 | Y23: =SUM($Y$10*$H23*10*$L$8/$L$9)/10 -> 14
B24: 300 | C24: 250 | D24: 5 | E24: 6 | F24: 250 | G24: 305 | H24: 5 | I24: x | J24: 6.1 | K24: =J24 -> 6.1 | L24: Småen | M24: =SUM($M$10*$J24*10*$L$8/$L$9)/10 -> 2.135 | N24: =SUM($N$10*$J24*10*$L$8/$L$9)/10 -> 2.66875 | O24: =SUM($O$10*$J24*10*$L$8/$L$9)/10 -> 3.2025 | P24: =SUM($P$10*$J24*10*$L$8/$L$9)/10 -> 3.73625 | Q24: =SUM($Q$10*$J24*10*$L$8/$L$9)/10 -> 4.27 | R24: =SUM($R$10*$J24*10*$L$8/$L$9)/10 -> 4.80375 | S24: =SUM($S$10*$J24*10*$L$8/$L$9)/10 -> 5.3375 | T24: =SUM($T$10*$J24*10*$L$8/$L$9)/10 -> 5.87125 | U24: =SUM($U$10*$J24*10*$L$8/$L$9)/10 -> 6.405 | V24: =SUM($V$10*$J24*10*$L$8/$L$9)/10 -> 6.93875 | W24: =SUM($W$10*$J24*10*$L$8/$L$9)/10 -> 7.4725 | X24: =SUM($X$10*$J24*10*$L$8/$L$9)/10 -> 8.00625 | Y24: =SUM($Y$10*$J24*10*$L$8/$L$9)/10 -> 8.54
B25: 425 | C25: 350 | D25: 7 | E25: 8.5 | F25: 350 | G25: 450 | H25: 7 | I25: x | J25: 9 | K25: 9 | L25: B45 | M25: =SUM($M$10*$J25*10*$L$8/$L$9)/10 -> 3.15 | N25: =SUM($N$10*$J25*10*$L$8/$L$9)/10 -> 3.9375 | O25: =SUM($O$10*$J25*10*$L$8/$L$9)/10 -> 4.725 | P25: =SUM($P$10*$J25*10*$L$8/$L$9)/10 -> 5.5125 | Q25: =SUM($Q$10*$J25*10*$L$8/$L$9)/10 -> 6.3 | R25: =SUM($R$10*$J25*10*$L$8/$L$9)/10 -> 7.0875 | S25: =SUM($S$10*$J25*10*$L$8/$L$9)/10 -> 7.875 | T25: =SUM($T$10*$J25*10*$L$8/$L$9)/10 -> 8.6625 | U25: =SUM($U$10*$J25*10*$L$8/$L$9)/10 -> 9.45 | V25: =SUM($V$10*$J25*10*$L$8/$L$9)/10 -> 10.2375 | W25: =SUM($W$10*$J25*10*$L$8/$L$9)/10 -> 11.025 | X25: =SUM($X$10*$J25*10*$L$8/$L$9)/10 -> 11.8125 | Y25: =SUM($Y$10*$J25*10*$L$8/$L$9)/10 -> 12.6
B26: 525 | C26: 460 | D26: 9.2 | E26: 10.5 | F26: 500 | G26: 650 | H26: 10 | I26: x | J26: 13 | K26: 13 | L26: B65 | M26: =SUM($M$10*$J26*10*$L$8/$L$9)/10 -> 4.55 | N26: =SUM($N$10*$J26*10*$L$8/$L$9)/10 -> 5.6875 | O26: =SUM($O$10*$J26*10*$L$8/$L$9)/10 -> 6.825 | P26: =SUM($P$10*$J26*10*$L$8/$L$9)/10 -> 7.9625 | Q26: =SUM($Q$10*$J26*10*$L$8/$L$9)/10 -> 9.1 | R26: =SUM($R$10*$J26*10*$L$8/$L$9)/10 -> 10.2375 | S26: =SUM($S$10*$J26*10*$L$8/$L$9)/10 -> 11.375 | T26: =SUM($T$10*$J26*10*$L$8/$L$9)/10 -> 12.5125 | U26: =SUM($U$10*$J26*10*$L$8/$L$9)/10 -> 13.65 | V26: =SUM($V$10*$J26*10*$L$8/$L$9)/10 -> 14.7875 | W26: =SUM($W$10*$J26*10*$L$8/$L$9)/10 -> 15.925 | X26: =SUM($X$10*$J26*10*$L$8/$L$9)/10 -> 17.0625 | Y26: =SUM($Y$10*$J26*10*$L$8/$L$9)/10 -> 18.2
B27: 600 | C27: 525 | D27: 10.5 | E27: 12 | F27: 550 | G27: 1000 | H27: 11 | I27: x | J27: 20 | K27: 20 | L27: B100 | M27: =SUM($M$10*$J27*10*$L$8/$L$9)/10 -> 7 | N27: =SUM($N$10*$J27*10*$L$8/$L$9)/10 -> 8.75 | O27: =SUM($O$10*$J27*10*$L$8/$L$9)/10 -> 10.5 | P27: =SUM($P$10*$J27*10*$L$8/$L$9)/10 -> 12.25 | Q27: =SUM($Q$10*$J27*10*$L$8/$L$9)/10 -> 14 | R27: =SUM($R$10*$J27*10*$L$8/$L$9)/10 -> 15.75 | S27: =SUM($S$10*$J27*10*$L$8/$L$9)/10 -> 17.5 | T27: =SUM($T$10*$J27*10*$L$8/$L$9)/10 -> 19.25 | U27: =SUM($U$10*$J27*10*$L$8/$L$9)/10 -> 21 | V27: =SUM($V$10*$J27*10*$L$8/$L$9)/10 -> 22.75 | W27: =SUM($W$10*$J27*10*$L$8/$L$9)/10 -> 24.5 | X27: =SUM($X$10*$J27*10*$L$8/$L$9)/10 -> 26.25 | Y27: =SUM($Y$10*$J27*10*$L$8/$L$9)/10 -> 28
B28: 475 | C28: 350 | D28: 7 | E28: 9.5 | F28: 400 | G28: 500 | H28: 8 | I28: x | J28: 10 | K28: =J28 -> 10 | L28: Tønne | M28: =SUM($M$10*$J28*10*$L$8/$L$9)/10 -> 3.5 | N28: =SUM($N$10*$J28*10*$L$8/$L$9)/10 -> 4.375 | O28: =SUM($O$10*$J28*10*$L$8/$L$9)/10 -> 5.25 | P28: =SUM($P$10*$J28*10*$L$8/$L$9)/10 -> 6.125 | Q28: =SUM($Q$10*$J28*10*$L$8/$L$9)/10 -> 7 | R28: =SUM($R$10*$J28*10*$L$8/$L$9)/10 -> 7.875 | S28: =SUM($S$10*$J28*10*$L$8/$L$9)/10 -> 8.75 | T28: =SUM($T$10*$J28*10*$L$8/$L$9)/10 -> 9.625 | U28: =SUM($U$10*$J28*10*$L$8/$L$9)/10 -> 10.5 | V28: =SUM($V$10*$J28*10*$L$8/$L$9)/10 -> 11.375 | W28: =SUM($W$10*$J28*10*$L$8/$L$9)/10 -> 12.25 | X28: =SUM($X$10*$J28*10*$L$8/$L$9)/10 -> 13.125 | Y28: =SUM($Y$10*$J28*10*$L$8/$L$9)/10 -> 14
B29: 400 | C29: 330 | D29: 6.6 | E29: 8 | F29: 600 | G29: 350 | H29: 12 | I29: x | J29: 7 | K29: 12 | L29: 1/4V | M29: =SUM($M$10*$H29*10*$L$8/$L$9)/10 -> 4.2 | N29: =SUM($N$10*$H29*10*$L$8/$L$9)/10 -> 5.25 | O29: =SUM($O$10*$H29*10*$L$8/$L$9)/10 -> 6.3 | P29: =SUM($P$10*$H29*10*$L$8/$L$9)/10 -> 7.35 | Q29: =SUM($Q$10*$H29*10*$L$8/$L$9)/10 -> 8.4 | R29: =SUM($R$10*$H29*10*$L$8/$L$9)/10 -> 9.45 | S29: =SUM($S$10*$H29*10*$L$8/$L$9)/10 -> 10.5 | T29: =SUM($T$10*$H29*10*$L$8/$L$9)/10 -> 11.55 | U29: =SUM($U$10*$H29*10*$L$8/$L$9)/10 -> 12.6 | V29: =SUM($V$10*$H29*10*$L$8/$L$9)/10 -> 13.65 | W29: =SUM($W$10*$H29*10*$L$8/$L$9)/10 -> 14.7 | X29: =SUM($X$10*$H29*10*$L$8/$L$9)/10 -> 15.75 | Y29: =SUM($Y$10*$H29*10*$L$8/$L$9)/10 -> 16.8
B30: 380 | C30: 315 | D30: 6.3 | E30: 7.6 | F30: 250 | G30: 625 | H30: 5 | I30: x | J30: 12.5 | K30: =J30 -> 12.5 | L30: S-25V | M30: =SUM($M$10*$J30*10*$L$8/$L$9)/10 -> 4.375 | N30: =SUM($N$10*$J30*10*$L$8/$L$9)/10 -> 5.46875 | O30: =SUM($O$10*$J30*10*$L$8/$L$9)/10 -> 6.5625 | P30: =SUM($P$10*$J30*10*$L$8/$L$9)/10 -> 7.65625 | Q30: =SUM($Q$10*$J30*10*$L$8/$L$9)/10 -> 8.75 | R30: =SUM($R$10*$J30*10*$L$8/$L$9)/10 -> 9.84375 | S30: =SUM($S$10*$J30*10*$L$8/$L$9)/10 -> 10.9375 | T30: =SUM($T$10*$J30*10*$L$8/$L$9)/10 -> 12.03125 | U30: =SUM($U$10*$J30*10*$L$8/$L$9)/10 -> 13.125 | V30: =SUM($V$10*$J30*10*$L$8/$L$9)/10 -> 14.21875 | W30: =SUM($W$10*$J30*10*$L$8/$L$9)/10 -> 15.3125 | X30: =SUM($X$10*$J30*10*$L$8/$L$9)/10 -> 16.40625 | Y30: =SUM($Y$10*$J30*10*$L$8/$L$9)/10 -> 17.5
B31: 330 | C31: 280 | D31: 5.6 | E31: 6.6 | F31: 625 | G31: 250 | H31: 12.5 | I31: x | J31: 5 | K31: 12.5 | L31: S-25H | M31: =SUM($M$10*$H31*10*$L$8/$L$9)/10 -> 4.375 | N31: =SUM($N$10*$H31*10*$L$8/$L$9)/10 -> 5.46875 | O31: =SUM($O$10*$H31*10*$L$8/$L$9)/10 -> 6.5625 | P31: 7.65625 | Q31: =SUM($Q$10*$H31*10*$L$8/$L$9)/10 -> 8.75 | R31: =SUM($R$10*$H31*10*$L$8/$L$9)/10 -> 9.84375 | S31: =SUM($S$10*$H31*10*$L$8/$L$9)/10 -> 10.9375 | T31: =SUM($T$10*$H31*10*$L$8/$L$9)/10 -> 12.03125 | U31: =SUM($U$10*$H31*10*$L$8/$L$9)/10 -> 13.125 | V31: =SUM($V$10*$H31*10*$L$8/$L$9)/10 -> 14.21875 | W31: =SUM($W$10*$H31*10*$L$8/$L$9)/10 -> 15.3125 | X31: =SUM($X$10*$H31*10*$L$8/$L$9)/10 -> 16.40625 | Y31: =SUM($Y$10*$H31*10*$L$8/$L$9)/10 -> 17.5
D32: METER | H32: MILLIMETER | M32: METER
